bitfinex/quotes_ETHUSD_20250507
["timestamp","ask_amount","ask_price","bid_price","bid_amount"]
[1746600929242,0.8122,1832.3,1832.1,0.55]
[1746600929443,0.8122,1832.3,1832.2,0.22658554]
[1746600929645,0.8122,1832.3,1832.1,0.55]
[1746600929854,0.8122,1832.3,1832.2,0.22658554]
[1746600930055,0.8122,1832.3,1832.1,0.55]
[1746600930257,0.8122,1832.3,1832.2,0.22658554]
[1746600930458,0.8122,1832.3,1832.1,0.55]
[1746600930656,0.8122,1832.3,1832.2,0.22658554]
[1746600931157,0.8122,1832.3,1832.1,0.55]
[1746600931357,0.8122,1832.3,1832.2,0.22658554]
[1746600931668,0.8122,1832.3,1832.1,0.55]
[1746600931871,0.8122,1832.3,1832.2,0.22658554]
[1746600932270,0.8122,1832.3,1832.1,6.00820576]
[1746600932486,0.8122,1832.3,1832.2,0.22658554]
[1746600933095,0.8122,1832.3,1832.2,0.22654538]
[1746600933474,0.8122,1832.3,1832.1,6.00821121]
[1746600933675,0.8122,1832.3,1832.2,0.22654538]
[1746600934168,0.8122,1832.3,1832.1,6.00801578]
[1746600934362,0.8122,1832.3,1832.2,0.22654538]
[1746600934667,0.8122,1832.3,1832.1,6.00801578]
[1746600934862,0.8122,1832.3,1832.2,0.22654538]
[1746600935040,0.8122,1832.3,1832.1,6.00801578]
[1746600935442,0.8122,1832.3,1832.2,0.22654538]
[1746600935640,0.8122,1832.3,1832.1,6.00801578]
[1746600935851,0.8122,1832.3,1832.2,0.22654538]
[1746600936052,0.8122,1832.3,1832.1,6.00801578]
[1746600936251,0.8122,1832.3,1832.2,0.22654538]
[1746600936460,0.8122,1832.3,1832.1,6.00801578]
[1746600936880,0.8122,1832.3,1832.2,0.22654538]
[1746600937685,0.8122,1832.3,1832.1,6.00801578]
[1746600937852,0.8122,1832.3,1832.2,0.22654538]
[1746600938254,0.8122,1832.3,1832.2,5.45791944]
[1746600938449,0.8122,1832.3,1832.2,5.68446482]
[1746600938655,0.7552,1832.4,1832.2,5.68424165]
[1746600938979,0.7552,1832.4,1832.3,5.45762156]
[1746600939387,0.7552,1832.4,1832.3,0.22605858]
[1746600940509,0.7882,1832.6,1832.3,0.77605858]
[1746600940791,0.7882,1832.6,1832.3,11.69089279]
[1746600940948,0.7882,1832.6,1832.4,5.45730342]
[1746600941370,0.7882,1832.6,1832.5,0.22508513]
[1746600941771,7.16955594,1832.6,1832.3,0.55]
[1746600942061,7.16955594,1832.6,1832.4,0.22557183]
[1746600942387,5.45702592,1832.5,1832.4,0.22557183]
[1746600942553,5.45702592,1832.5,1832.3,0.55]
[1746600942748,5.45702592,1832.5,1832.4,0.22557183]
[1746600943308,0.8314,1832.4,1832.1,5.45804661]
[1746600949999,6.28877117,1832.4,1832.0,5.4584162]
[1746600950188,0.8329,1832.3,1832.1,0.55]
[1746600950902,0.8329,1832.3,1832.1,6.00819645]
[1746600951077,0.8329,1832.3,1832.2,0.22610296]
[1746600951279,0.8329,1832.3,1832.1,6.00819645]
[1746600951481,0.8329,1832.3,1832.2,0.22610296]
[1746600951866,0.8329,1832.3,1832.1,6.00819645]
[1746600952089,0.8329,1832.3,1832.2,0.22610296]
[1746600952504,0.8329,1832.3,1832.1,6.00819645]
[1746600952708,0.8329,1832.3,1832.2,0.22610296]
[1746600953172,0.8329,1832.3,1832.1,6.00819645]
[1746600953373,0.8329,1832.3,1832.2,0.22610296]
[1746600954111,0.8329,1832.3,1832.0,5.45839472]
[1746600954314,0.8329,1832.3,1832.2,0.22610296]
[1746600954599,0.8329,1832.3,1832.1,0.22658981]
[1746600954773,0.8329,1832.3,1832.2,0.22610296]
[1746600955207,0.8329,1832.3,1832.0,5.45830232]
[1746600955413,0.8329,1832.3,1832.2,0.22610296]
[1746600955584,0.8329,1832.3,1832.1,0.22658981]
[1746600955914,0.8329,1832.3,1832.2,0.22610296]
[1746600956312,0.8329,1832.3,1832.1,5.45819814]
[1746600956484,0.8329,1832.3,1832.2,0.22610296]
[1746600957282,0.8329,1832.3,1832.0,5.45828987]
[1746600957614,0.8329,1832.3,1832.2,0.22610296]
[1746600957809,0.8329,1832.3,1832.1,0.22658981]
[1746600958017,0.8329,1832.3,1832.2,0.22630404]
[1746600958386,0.8329,1832.3,1832.0,10.91658635]
[1746600958603,0.8329,1832.3,1832.2,0.22630404]
[1746600958793,0.8329,1832.3,1832.1,0.2267909]
[1746600959009,0.8329,1832.3,1832.2,0.22630404]
[1746600959385,0.8329,1832.3,1832.0,10.91658635]
[1746600959602,0.8329,1832.3,1832.2,0.22630404]
[1746600959817,0.8329,1832.3,1832.1,5.68500645]
[1746600959986,0.8329,1832.3,1832.2,0.22630404]
[1746600960187,0.8329,1832.3,1832.2,5.68422348]
[1746600960395,0.8329,1832.3,1832.2,6.57214684]
[1746600960617,0.8329,1832.3,1832.2,6.79845088]
[1746600961218,0.7722,1832.5,1832.2,6.79845088]
[1746600961429,0.7722,1832.5,1832.2,5.68422348]
[1746600962321,6.22924264,1832.5,1832.2,5.68422348]
[1746600962523,5.45704264,1832.5,1832.2,0.22630404]
[1746600962699,0.7738,1832.4,1832.2,0.22630404]
[1746600963033,6.23162648,1832.3,1831.9,5.45869118]
[1746600963186,6.2313256,1832.2,1831.9,5.45876794]
[1746600963517,0.7733,1831.9,1831.8,3.68335741]
[1746600963699,6.23211325,1831.9,1831.8,3.68335741]
[1746600963896,0.7733,1831.9,1831.8,3.68335741]
[1746600966226,0.7733,1831.9,1831.8,3.89457432]
[1746600967133,0.7733,1831.9,1831.8,21.89457432]
[1746600967331,0.7733,1831.9,1831.8,18.21121691]
[1746600968810,7.754057,1832.1,1831.8,18.21121691]
[1746600968811,8.558457,1832.1,1831.8,18.21121691]
[1746600969010,0.8044,1832.1,1831.8,18.21121691]
[1746600969211,0.8044,1832.1,1831.8,23.67016079]
[1746600969625,0.8044,1832.1,1831.8,5.67016079]
[1746600970735,6.2626184,1832.1,1831.8,0.21121691]
[1746600971324,3.10011226,1832.1,1831.8,0.21121691]
[1746600971495,3.9559318,1832.1,1831.8,0.21121691]
[1746600971697,5.45881325,1831.9,1831.8,0.21121691]
[1746600971913,6.27770047,1832.0,1831.6,5.45967411]
[1746600972206,6.27770047,1832.0,1831.8,0.21318791]
[1746600972400,6.27770047,1832.0,1831.7,0.21367498]
[1746600972601,6.27770047,1832.0,1831.9,0.2127009]
[1746600972831,7.76646276,1832.0,1831.8,0.21318791]
[1746600973011,7.76646276,1832.0,1831.9,0.2127009]
[1746600973333,7.76646276,1832.0,1831.6,5.45967411]
[1746600973627,6.27770047,1832.0,1831.9,0.2127009]
[1746600973833,6.27770047,1832.0,1831.6,5.45967411]
[1746600974054,6.27770047,1832.0,1831.9,0.2127009]
[1746600974535,6.27770047,1832.0,1831.6,5.45967411]
[1746600974740,6.27770047,1832.0,1831.9,0.2127009]
[1746600974913,6.27770047,1832.0,1831.6,5.45967411]
[1746600975113,6.27770047,1832.0,1831.9,0.2127009]
[1746600975432,6.27770047,1832.0,1831.6,5.45967411]
[1746600975923,6.27770047,1832.0,1831.7,0.21367498]
[1746600976336,6.27770047,1832.0,1831.6,5.45967411]
[1746600976537,6.27770047,1832.0,1831.8,0.21318791]
[1746600976715,6.27770047,1832.0,1831.7,0.21367498]
[1746600976921,6.27770047,1832.0,1831.9,0.2127009]
[1746600977236,7.68088081,1832.0,1831.8,0.21318791]
[1746600977535,7.68088081,1832.0,1831.9,0.2127009]
[1746600977835,7.68088081,1832.0,1831.6,5.45967411]
[1746600978055,6.27770047,1832.0,1831.7,0.21367498]
[1746600978348,6.27770047,1832.0,1831.6,5.45967411]
[1746600978566,6.27770047,1832.0,1831.8,0.21318791]
[1746600978767,6.27770047,1832.0,1831.7,0.21367498]
[1746600979050,6.27770047,1832.0,1831.9,0.2127009]
[1746600979342,7.68088081,1832.0,1831.9,0.2127009]
[1746600979543,7.68088081,1832.0,1831.6,5.45967411]
[1746600979743,6.27770047,1832.0,1831.9,0.2127009]
[1746600979909,6.27770047,1832.0,1831.6,5.45967411]
[1746600980106,6.27770047,1832.0,1831.9,0.2127009]
[1746600980338,11.73649312,1832.0,1831.6,5.45967411]
[1746600980538,6.27770047,1832.0,1831.9,0.2127009]
[1746600980735,1.40317566,1832.0,1831.7,0.7929]
[1746600980940,6.27806232,1832.1,1831.9,0.2127009]
[1746600981153,6.27806232,1832.1,1831.8,0.21318791]
[1746600981352,6.27806232,1832.1,1832.0,0.21221394]
[1746600981862,6.27806232,1832.1,1831.7,11.71132424]
[1746600982063,6.27806232,1832.1,1831.8,0.21318791]
[1746600982586,6.27806232,1832.1,1831.8,5.67227765]
[1746600983802,0.8197,1832.1,1831.8,5.67227765]
[1746600983943,3.08081226,1832.2,1831.9,5.4586554]
[1746600984145,8.53874347,1832.2,1831.9,5.4586554]
[1746600984460,8.53875744,1832.2,1832.0,0.21197252]
[1746600985611,0.7851,1832.2,1832.0,0.21197252]
[1746600985757,10.86379507,1832.3,1832.0,0.21197252]
[1746600985958,13.10502478,1832.3,1832.0,0.21197252]
[1746600986871,0.8221,1832.2,1831.8,6.00887913]
[1746600987071,6.2801158,1832.2,1831.9,0.21245948]
[1746600989521,0.8221,1832.2,1831.9,0.21245948]
[1746600990219,0.8221,1832.2,1831.9,5.6711983]
[1746600999027,0.8221,1832.2,1831.9,5.67110629]
[1746600999321,3.0,1832.4,1832.1,5.45802476]
[1746600999491,6.2892364,1832.5,1832.2,0.21027462]
[1746600999694,6.2892364,1832.5,1832.1,10.91602922]
[1746600999876,6.2892364,1832.5,1832.2,0.21027462]
[1746601000077,0.62892364,1832.4,1832.2,5.45788414]
[1746601000394,6.289137,1832.5,1832.3,0.20978782]
[1746601000703,6.289137,1832.5,1832.1,5.45801279]
[1746601001012,6.289137,1832.5,1832.2,0.21027462]
[1746601001195,2.29571226,1832.4,1832.2,0.21027462]
[1746601001381,2.29571226,1832.4,1832.1,5.45801279]
[1746601001584,2.29571226,1832.4,1832.3,0.20978782]
[1746601001814,3.15419719,1832.4,1832.2,0.21027462]
[1746601001982,3.15419719,1832.4,1832.3,0.20978782]
[1746601002314,3.15419719,1832.4,1832.1,5.45801279]
[1746601002516,2.29571226,1832.4,1832.2,0.21027462]
[1746601002812,2.29571226,1832.4,1832.1,5.45801279]
[1746601003015,2.29571226,1832.4,1832.3,0.20978782]
[1746601003612,2.29571226,1832.4,1832.1,5.45801279]
[1746601003814,2.29571226,1832.4,1832.3,0.20978782]
[1746601004002,2.29571226,1832.4,1832.2,0.21027462]
[1746601004318,2.29571226,1832.4,1832.3,0.20978782]
[1746601004480,2.29571226,1832.4,1832.1,5.45798828]
[1746601004676,2.29571226,1832.4,1832.2,0.21027462]
[1746601004913,2.29571226,1832.4,1832.1,5.45798828]
[1746601005113,2.29571226,1832.4,1832.2,0.21027462]
[1746601005316,2.29571226,1832.4,1832.1,5.45798828]
[1746601005516,2.29571226,1832.4,1832.2,0.21027462]
[1746601005696,6.289137,1832.5,1832.1,10.91601943]
[1746601005894,6.289137,1832.5,1832.2,0.21027462]
[1746601006093,6.289137,1832.5,1832.1,5.45798828]
[1746601006294,6.289137,1832.5,1832.2,0.21027462]
[1746601006606,6.289137,1832.5,1832.1,10.91600904]
[1746601006814,6.289137,1832.5,1832.3,0.20978782]
[1746601007115,11.5339087,1832.5,1832.4,0.20930108]
[1746601007317,11.5339087,1832.5,1832.1,5.45798828]
[1746601007616,9.289137,1832.5,1832.2,0.21027462]
[1746601007916,9.289137,1832.5,1832.1,5.45798828]
[1746601008117,9.289137,1832.5,1832.2,0.21027462]
[1746601008422,5.406,1832.6,1832.2,6.21065217]
[1746601008724,5.406,1832.6,1832.4,5.45727015]
[1746601009023,5.406,1832.6,1832.5,0.20772839]
[1746601010191,6.22054418,1832.7,1832.5,0.20772839]
[1746601010801,6.22054418,1832.7,1832.3,5.45742877]
[1746601011135,9.22054418,1832.7,1832.3,6.62423595]
[1746601011339,9.22054418,1832.7,1832.4,0.20821509]
[1746601011834,9.22054418,1832.7,1832.3,10.91485806]
[1746601012143,9.22054418,1832.7,1832.4,0.20821509]
[1746601012516,3.764,1832.7,1832.3,5.45742877]
[1746601012722,9.22059686,1832.7,1832.4,0.20821509]
[1746601013036,9.22059686,1832.7,1832.3,5.45742877]
[1746601013195,14.67726965,1832.7,1832.5,0.20772839]
[1746601013389,14.67726965,1832.7,1832.4,0.20821509]
[1746601013601,9.22059686,1832.7,1832.6,0.20724175]
[1746601013802,11.45825352,1832.7,1832.5,0.20772839]
[1746601013986,11.45825352,1832.7,1832.3,5.45742877]
[1746601014319,9.22059686,1832.7,1832.3,5.45742877]
[1746601014525,9.22059686,1832.7,1832.4,0.20821509]
[1746601014831,9.22059686,1832.7,1832.3,5.45742877]
[1746601015036,9.22059686,1832.7,1832.5,0.20772839]
[1746601015199,9.22059686,1832.7,1832.3,5.45742877]
[1746601015200,9.22059686,1832.7,1832.4,0.20821509]
[1746601015413,9.22059686,1832.7,1832.6,0.20724175]
[1746601015618,11.45825352,1832.7,1832.5,0.20772839]
[1746601015844,11.45825352,1832.7,1832.3,5.45742877]
[1746601016031,9.22059686,1832.7,1832.6,0.20724175]
[1746601016241,14.67731425,1832.7,1832.3,5.45742877]
[1746601016442,9.22059686,1832.7,1832.6,0.20724175]
[1746601016632,14.67731525,1832.7,1832.3,5.45742877]
[1746601016951,7.75253308,1832.6,1832.2,0.7529]
[1746601017247,5.45713453,1832.5,1832.4,0.20821509]
[1746601017437,5.45713453,1832.5,1832.3,0.20870184]
[1746601017635,5.45713453,1832.5,1832.4,0.20821509]
[1746601017946,7.75262526,1832.6,1832.4,0.20821509]
[1746601018136,9.44994887,1832.6,1832.2,6.21079967]
[1746601018335,7.75262526,1832.6,1832.3,0.20870184]
[1746601020410,5.45705463,1832.5,1832.3,0.20870184]
[1746601031477,5.45705463,1832.5,1832.3,0.17972547]
[1746601036793,10.91431057,1832.5,1832.3,0.17972547]
[1746601037087,5.45705463,1832.5,1832.3,0.17972547]
[1746601038818,5.45732372,1832.4,1832.3,0.17972547]
[1746601038978,7.90613134,1832.4,1832.3,0.17972547]
[1746601039468,2.44880762,1832.4,1831.9,12.048685]
[1746601039801,5.45781647,1832.3,1831.9,6.008685]
[1746601040162,5.45781647,1832.3,1832.0,0.20601837]
[1746601040919,7.09832409,1832.3,1832.0,0.20601837]
[1746601041223,12.55623154,1832.3,1832.0,0.20601837]
[1746601041516,7.09865216,1832.2,1832.0,0.20601837]
[1746601041731,5.45814454,1832.2,1832.0,0.20601837]
[1746601042004,6.24444454,1832.2,1832.1,0.20553147]
[1746601042165,6.24444454,1832.2,1831.8,6.25782629]
[1746601042372,6.24444454,1832.2,1831.9,0.20650533]
[1746601042583,0.7863,1832.2,1831.9,0.20650533]
[1746601043301,7.75529261,1832.3,1831.9,5.66518796]
[1746601045905,7.75529261,1832.3,1832.0,18.0]
[1746601046205,7.75529261,1832.3,1832.1,0.20637605]
[1746601046408,10.23309986,1832.3,1832.1,0.20637605]
[1746601047182,10.23309986,1832.3,1831.9,10.91731075]
[1746601047379,10.23309986,1832.3,1832.0,0.20686296]
[1746601047580,10.23309986,1832.3,1832.0,5.66537745]
[1746601047792,7.93561823,1832.3,1832.0,6.48577745]
[1746601051307,22.48039009,1832.4,1832.0,6.48577745]
[1746601054612,5.45768569,1832.3,1832.0,6.48577745]
[1746601056416,5.45794022,1832.2,1832.0,1.02726296]
[1746601056580,6.25294022,1832.2,1832.0,0.20686296]
[1746601056775,11.71112283,1832.2,1831.8,6.24503466]
[1746601057009,5.45822054,1832.1,1831.9,0.20734992]
[1746601057691,5.45822351,1832.1,1831.9,0.20734992]
[1746601057893,6.25312249,1832.2,1831.9,0.20734992]
[1746601058208,7.65396276,1832.2,1831.9,0.20734992]
[1746601059218,5.45851528,1832.0,1831.9,0.20734992]
[1746601059385,6.25761528,1832.0,1831.6,6.26739225]
[1746601059581,6.25761528,1832.0,1831.7,0.19251701]
[1746601059793,6.25761528,1832.0,1831.6,6.26739225]
[1746601059987,6.25761528,1832.0,1831.7,0.19251701]
[1746601060192,6.25761528,1832.0,1831.6,6.26739225]
[1746601060394,6.25761528,1832.0,1831.7,0.19251701]
[1746601060594,6.25761528,1832.0,1831.6,6.26739225]
[1746601060794,6.25761528,1832.0,1831.7,0.19251701]
[1746601061117,6.25761528,1832.0,1831.6,6.26739225]
[1746601061417,6.25761528,1832.0,1831.7,0.19251701]
[1746601061716,6.25761528,1832.0,1831.6,6.26739225]
[1746601061915,6.25761528,1832.0,1831.8,0.19202994]
[1746601062212,6.25761528,1832.0,1831.9,0.19154293]
[1746601062414,7.6589601,1832.0,1831.6,6.26739225]
[1746601062616,6.25761528,1832.0,1831.9,0.19154293]
[1746601062783,11.71638295,1832.0,1831.6,6.26739225]
[1746601062983,5.45883767,1831.9,1831.7,0.19251701]
[1746601063411,5.45883767,1831.9,1831.6,0.8078]
[1746601063617,5.45883767,1831.9,1831.7,0.19251701]
[1746601063794,5.45883767,1831.9,1831.6,0.8078]
[1746601063994,5.45883767,1831.9,1831.7,0.19251701]
[1746601064208,5.45883767,1831.9,1831.6,0.8078]
[1746601064506,5.45883767,1831.9,1831.7,0.19251701]
[1746601064695,5.45883767,1831.9,1831.6,6.26746522]
[1746601064893,5.45883767,1831.9,1831.8,0.19202994]
[1746601065095,5.45883767,1831.9,1831.6,6.26746522]
[1746601065302,5.45883767,1831.9,1831.8,0.19202994]
[1746601065517,6.25781203,1832.0,1831.6,6.26746522]
[1746601065716,6.25781203,1832.0,1831.8,0.19202994]
[1746601065917,6.25781203,1832.0,1831.7,0.19251701]
[1746601066119,6.25781203,1832.0,1831.9,0.19154293]
[1746601066317,7.59356187,1832.0,1831.9,0.19154293]
[1746601066519,7.59356187,1832.0,1831.6,6.26746522]
[1746601066727,6.25781203,1832.0,1831.9,0.19154293]
[1746601067417,11.71660592,1832.0,1831.6,6.26746522]
[1746601067623,6.25781203,1832.0,1831.9,0.19154293]
[1746601067921,6.25781203,1832.0,1831.6,6.26746522]
[1746601068221,6.25781203,1832.0,1831.9,0.19154293]
[1746601068386,7.59355787,1832.0,1831.6,6.26746522]
[1746601068590,6.25781203,1832.0,1831.7,0.19251701]
[1746601068818,6.25781203,1832.0,1831.6,6.26746522]
[1746601069121,11.7165624,1832.0,1831.8,0.19202994]
[1746601069326,11.7165624,1832.0,1831.7,0.19251701]
[1746601069624,5.45881381,1831.9,1831.6,6.26746522]
[1746601069825,5.45881381,1831.9,1831.6,7.49518982]
[1746601070628,5.45881381,1831.9,1831.6,2.0355246]
[1746601070924,5.45881381,1831.9,1831.6,0.8078]
[1746601071100,5.45881381,1831.9,1831.7,0.19251701]
[1746601071303,5.45881381,1831.9,1831.6,0.8078]
[1746601071522,5.45881381,1831.9,1831.8,0.19202994]
[1746601071690,5.45881381,1831.9,1831.6,0.8078]
[1746601071893,5.45881381,1831.9,1831.8,0.19202994]
[1746601072127,5.45881381,1831.9,1831.6,0.8078]
[1746601072287,5.45881381,1831.9,1831.8,0.19202994]
[1746601072491,5.45881381,1831.9,1831.6,6.26750505]
[1746601072701,5.45881381,1831.9,1831.8,0.19202994]
[1746601072898,5.45881381,1831.9,1831.6,6.26750505]
[1746601073103,5.45881381,1831.9,1831.8,0.19202994]
[1746601073322,5.45881381,1831.9,1831.6,6.26750505]
[1746601073519,5.45881381,1831.9,1831.8,0.19202994]
[1746601073699,5.45881381,1831.9,1831.6,6.26750505]
[1746601073901,5.45881381,1831.9,1831.8,0.19202994]
[1746601074102,5.45881381,1831.9,1831.6,6.26750505]
[1746601074931,5.45881381,1831.9,1831.8,0.19275402]
[1746601075104,5.45881381,1831.9,1831.7,0.19324109]
[1746601075305,5.45881381,1831.9,1831.8,0.19275402]
[1746601075625,5.45881381,1831.9,1831.6,6.26750505]
[1746601075825,5.45881381,1831.9,1831.7,0.19324109]
[1746601076028,5.45881381,1831.9,1831.6,6.26750505]
[1746601076323,5.45881381,1831.9,1831.7,0.19324109]
[1746601076629,5.45881381,1831.9,1831.6,6.26750505]
[1746601076792,5.45881381,1831.9,1831.8,0.19275402]
[1746601077125,6.63047639,1831.9,1831.6,6.26750505]
[1746601077322,5.45881381,1831.9,1831.8,0.19275402]
[1746601077525,5.45881381,1831.9,1831.7,0.19324109]
[1746601077727,5.45881381,1831.9,1831.8,0.19275402]
[1746601078087,10.91787411,1831.9,1831.5,5.45998683]
[1746601078345,10.91787411,1831.9,1831.8,0.19275402]
[1746601078346,5.45881381,1831.9,1831.8,0.19275402]
[1746601078519,12.25366015,1831.9,1831.5,5.45998683]
[1746601078694,5.45881381,1831.9,1831.8,0.19275402]
[1746601079228,10.91787411,1831.9,1831.5,5.45998683]
[1746601079449,10.91787411,1831.9,1831.6,0.19372821]
[1746601079645,5.45881381,1831.9,1831.6,0.19372821]
[1746601079813,5.45881381,1831.9,1831.6,5.65342285]
[1746601080021,6.25775407,1832.0,1831.6,7.5835453]
[1746601081248,11.71652833,1832.0,1831.6,7.5835453]
[1746601081423,6.25775407,1832.0,1831.6,6.47222285]
[1746601081935,5.45881565,1831.9,1831.6,6.47222285]
[1746601084151,6.25775407,1832.0,1831.6,6.47222285]
[1746601084514,5.45884267,1831.9,1831.6,6.47222285]
[1746601087855,6.25762223,1832.0,1831.6,6.47222285]
[1746601088058,5.45852223,1832.0,1831.6,6.47222285]
[1746601088716,5.45852223,1832.0,1831.6,11.93173449]
[1746601088917,5.45852223,1832.0,1831.6,6.47203985]
[1746601092163,6.62876379,1832.0,1831.6,1.01252821]
[1746601092363,5.45891311,1831.9,1831.6,1.01252821]
[1746601093159,6.23951311,1831.9,1831.6,1.01252821]
[1746601093466,5.45921695,1831.8,1831.6,0.19372821]
[1746601094764,1.40084027,1832.2,1831.6,0.19372821]
[1746601094964,6.27340517,1832.1,1831.7,6.22230312]
[1746601095274,10.91685654,1832.1,1831.8,0.19456393]
[1746601095769,5.45840517,1832.1,1831.8,0.19456393]
[1746601095932,5.45852583,1832.0,1831.8,0.19456393]
[1746601096876,11.615,1832.3,1831.9,5.4586925]
[1746601096877,6.27277838,1832.3,1831.9,5.4586925]
[1746601097165,8.45803468,1832.2,1831.9,0.763]
[1746601097371,8.45803468,1832.2,1832.0,0.19358996]
[1746601097873,13.91619089,1832.2,1832.0,0.19358996]
[1746601098161,15.55347944,1832.2,1832.0,0.19358996]
[1746601098364,5.45821734,1832.1,1832.0,0.19358996]
[1746601099867,5.45853402,1832.0,1831.7,6.23700351]
[1746601100043,5.45853402,1832.0,1831.7,0.7777]
[1746601100644,6.2656949,1832.1,1831.7,6.23710166]
[1746601101033,6.2656949,1832.1,1831.8,0.19339735]
[1746601101368,7.52011961,1832.1,1831.8,0.19339735]
[1746601102087,5.45855949,1832.0,1831.8,0.19339735]
[1746601102574,5.45841398,1832.1,1831.8,0.19339735]
[1746601103981,5.45841398,1832.1,1831.8,5.65250123]
[1746601106679,5.45841398,1832.1,1831.8,0.19339735]
[1746601106983,6.85007672,1832.1,1831.8,0.19339735]
[1746601107153,6.85007672,1832.1,1831.8,5.65249972]
[1746601108287,6.85007672,1832.1,1831.8,0.19339735]
[1746601109075,6.85007672,1832.1,1831.8,5.65249901]
[1746601109280,5.45843701,1832.1,1831.8,5.65249901]
[1746601109479,8.45811583,1832.2,1831.8,5.65249901]
[1746601109678,13.91630042,1832.2,1831.8,5.65249901]
[1746601110177,8.45811583,1832.2,1831.8,5.65249901]
[1746601110585,13.91627151,1832.2,1831.8,5.65249901]
[1746601110879,15.54942402,1832.2,1831.8,5.65249901]
[1746601111585,8.45811583,1832.2,1831.8,11.11140977]
[1746601111764,8.45811583,1832.2,1831.9,6.24676443]
[1746601112162,8.45811583,1832.2,1832.0,0.19274522]
[1746601115090,5.45811583,1832.2,1832.0,0.19274522]
[1746601115264,6.23173612,1832.3,1832.0,0.19274522]
[1746601115465,7.85874001,1832.3,1832.0,0.19274522]
[1746601117110,5.45794247,1832.2,1832.0,0.19274522]
[1746601117875,10.85883505,1832.3,1832.0,0.19274522]
[1746601118702,16.31671133,1832.3,1832.0,0.19274522]
[1746601119001,10.85883505,1832.3,1832.0,0.19274522]
[1746601119202,16.31669143,1832.3,1832.0,0.19274522]
[1746601119589,10.85883505,1832.3,1832.0,0.19274522]
[1746601124507,10.08483505,1832.3,1832.0,5.65114212]
[1746601124807,8.45783116,1832.3,1832.0,5.65114212]
[1746601125003,8.45783116,1832.3,1832.0,0.19274522]
[1746601127306,8.45783116,1832.3,1832.0,5.65125873]
[1746601127511,3.0,1832.3,1832.0,5.65125873]
[1746601128006,8.45766955,1832.3,1832.0,5.65125873]
[1746601128205,0.8084,1832.6,1832.2,7.09915055]
[1746601128512,3.66900058,1832.7,1832.4,7.09852657]
[1746601128806,3.66900058,1832.7,1832.4,7.09840757]
[1746601129166,3.66900058,1832.7,1832.5,0.18942632]
[1746601129611,3.66900058,1832.7,1832.5,2.61302914]
[1746601129909,3.66900058,1832.7,1832.5,7.2355178]
[1746601130913,3.66900058,1832.7,1832.6,6.25892814]
[1746601131409,3.66900058,1832.7,1832.6,6.44786782]
[1746601131616,14.57987356,1833.1,1832.6,11.90459596]
[1746601131806,14.57987356,1833.1,1832.6,13.40529773]
[1746601132421,9.12439556,1833.1,1832.7,5.45638086]
[1746601132706,9.12439556,1833.1,1832.8,0.18796656]
[1746601133907,14.5798708,1833.1,1832.8,0.18796656]
[1746601134114,5.45554374,1833.0,1832.8,0.18796656]
[1746601134498,5.45554374,1833.0,1832.7,5.45642786]
[1746601134805,5.45554374,1833.0,1832.9,0.18526849]
[1746601134987,5.45554374,1833.0,1832.8,0.18575497]
[1746601135173,5.45554374,1833.0,1832.9,0.18526849]
[1746601135508,5.45554374,1833.0,1832.7,5.45642786]
[1746601135715,5.45554374,1833.0,1832.9,0.18526849]
[1746601136004,5.45554374,1833.0,1832.8,0.18575497]
[1746601136211,5.45554374,1833.0,1832.9,0.18526849]
[1746601136607,5.45554374,1833.0,1832.7,5.45642786]
[1746601136811,5.45544244,1833.1,1832.9,0.18526849]
[1746601137009,5.45544244,1833.1,1832.8,0.18575497]
[1746601137214,5.45544244,1833.1,1833.0,0.18478206]
[1746601137398,5.45544244,1833.1,1832.9,0.18526849]
[1746601137605,5.45544244,1833.1,1833.0,0.18478206]
[1746601137916,5.45544244,1833.1,1832.7,5.45642786]
[1746601138207,5.45544244,1833.1,1833.0,0.18478206]
[1746601138702,5.45544244,1833.1,1832.6,11.71528278]
[1746601138703,5.45557113,1833.0,1832.6,11.71528278]
[1746601139328,6.28497113,1833.0,1832.6,6.25873392]
[1746601139790,5.45585928,1832.9,1832.6,6.25873392]
[1746601140525,6.28511794,1833.0,1832.6,6.25873392]
[1746601140726,7.45916291,1833.0,1832.6,6.25873392]
[1746601141223,12.91493006,1833.0,1832.6,6.25873392]
[1746601141631,7.45916291,1833.0,1832.6,6.25873392]
[1746601141920,5.45591106,1832.9,1832.6,0.8022]
[1746601142483,5.45591106,1832.9,1832.6,6.25891718]
[1746601143216,7.45916291,1833.0,1832.6,11.71545444]
[1746601143409,7.45916291,1833.0,1832.7,5.45640981]
[1746601145228,7.45916291,1833.0,1832.6,6.25873726]
[1746601145400,7.45916291,1833.0,1832.6,11.715263]
[1746601146126,7.45916291,1833.0,1832.7,0.18592001]
[1746601146505,7.45916291,1833.0,1832.6,6.25872574]
[1746601146733,7.45916291,1833.0,1832.8,0.18543347]
[1746601146906,0.74591629,1832.9,1832.7,0.18592001]
[1746601147106,0.74591629,1832.9,1832.6,6.25872574]
[1746601147306,7.45916291,1833.0,1832.6,6.25872574]
[1746601149922,7.45916291,1833.0,1832.6,11.71525753]
[1746601150141,7.45916291,1833.0,1832.6,6.25872574]
[1746601150307,7.45916291,1833.0,1832.6,11.71523083]
[1746601150496,5.4558669,1832.9,1832.6,5.45650509]
[1746601150692,5.4558669,1832.9,1832.5,5.45684124]
[1746601150693,6.74736988,1832.9,1832.5,5.45684124]
[1746601152533,12.20343232,1832.9,1832.5,5.45684124]
[1746601153425,12.20343125,1832.9,1832.5,5.45684124]
[1746601153641,6.74736988,1832.9,1832.5,5.45684124]
[1746601155440,12.20349219,1832.9,1832.5,5.45684124]
[1746601155729,5.45613457,1832.8,1832.5,5.45684124]
[1746601155930,6.74750636,1832.9,1832.5,5.45684124]
[1746601156140,12.20363412,1832.9,1832.5,5.45684124]
[1746601157603,6.26602421,1832.8,1832.4,11.74115995]
[1746601158835,6.26602421,1832.8,1832.4,6.28397908]
[1746601159136,5.45686028,1832.6,1832.3,5.45758351]
[1746601160132,5.45661281,1832.7,1832.4,5.45728577]
[1746601160335,5.45644842,1832.7,1832.4,5.45728577]
[1746601161230,5.45644842,1832.7,1832.5,0.17089934]
[1746601161433,17.05011297,1832.8,1832.5,0.17089934]
[1746601161599,19.30071921,1832.8,1832.5,0.17089934]
[1746601163745,10.784,1832.8,1832.5,5.62781664]
[1746601165336,16.24015729,1832.8,1832.5,5.62781664]
[1746601169346,16.24015729,1832.8,1832.5,0.17089934]
[1746601171643,16.24015729,1832.8,1832.5,5.62790725]
[1746601173735,16.24015729,1832.8,1832.5,0.17089934]
[1746601177746,10.84815729,1832.8,1832.5,0.17089934]
[1746601181745,5.392,1832.8,1832.5,0.17089934]
[1746601181951,5.45602996,1832.9,1832.6,0.792]
[1746601181952,5.45600913,1832.9,1832.6,0.792]
[1746601182156,10.84771477,1833.0,1832.7,5.45638389]
[1746601182358,10.84771477,1833.0,1832.7,5.62667184]
[1746601183068,5.45571477,1833.0,1832.7,5.62667184]